bitfinex/quotes_SOLUSD_20260309
["timestamp","ask_amount","ask_price","bid_price","bid_amount"]
[1773034979695,3.62463872,84.239,84.204,3.77303609]
[1773034979993,11.67479645,84.23,84.204,15.64883664]
[1773034980579,3.62463872,84.239,84.205,3.77303609]
[1773034980774,3.62463872,84.248,84.207,3.77303609]
[1773034980981,3.62463872,84.248,84.211,3.77303609]
[1773034981182,12.14391904,84.319,84.231,3.77303609]
[1773034981183,11.86591515,84.275,84.231,3.77303609]
[1773034981575,11.67479645,84.27,84.231,3.77303609]
[1773034981776,15.29943517,84.27,84.231,3.77303609]
[1773034982376,3.62463872,84.269,84.231,3.77303609]
[1773034982776,11.67479645,84.26,84.231,3.77303609]
[1773034982981,11.67479645,84.27,84.231,3.77303609]
[1773034983390,11.67479645,84.27,84.222,41.55683787]
[1773034983391,15.70603711,84.269,84.233,3.91276787]
[1773034983589,83.16110821,84.286,84.235,3.91276787]
[1773034983590,3.8392771,84.279,84.235,3.91276787]
[1773034983791,53.5,84.286,84.251,3.91276787]
[1773034983980,3.8392771,84.285,84.251,3.91276787]
[1773034984486,11.67479645,84.28,84.251,3.91276787]
[1773034984871,11.67479645,84.28,84.24,11.67479645]
[1773034985080,11.86444865,84.286,84.251,3.91276787]
[1773034985285,11.86394428,84.289,84.252,11.86915444]
[1773034985499,3.8392771,84.3,84.252,11.86915444]
[1773034985500,3.8392771,84.3,84.254,0.28432314]
[1773034985793,3.8392771,84.317,84.271,3.91276787]
[1773034986002,3.8392771,84.299,84.261,3.91276787]
[1773034986293,11.58501683,84.3,84.187,3.91276787]
[1773034986294,3.8392771,84.279,84.187,3.91276787]
[1773034986473,11.58501683,84.26,84.221,3.91276787]
[1773034986679,11.58501683,84.26,84.22,11.58501683]
[1773034986680,11.58501683,84.27,84.227,3.91276787]
[1773034986874,11.58501683,84.26,84.229,3.91276787]
[1773034987070,15.42429393,84.24,84.207,3.79264787]
[1773034987274,15.42429393,84.24,84.189,59.38966534]
[1773034987275,3.8392771,84.293,84.23,11.58501683]
[1773034987475,0.28432314,84.311,84.23,11.58501683]
[1773034987476,11.58501683,84.27,84.231,41.55239757]
[1773034987777,11.86352204,84.292,84.231,41.55239757]
[1773034987778,3.8392771,84.291,84.231,41.55239757]
[1773034988097,11.58501683,84.29,84.25,11.58501683]
[1773034988898,3.78275937,84.289,84.241,0.28432314]
[1773034989191,59.29728469,84.321,84.231,100.91296553]
[1773034989192,11.58501683,84.31,84.261,3.55586251]
[1773034989381,23.44600603,84.31,84.261,3.55586251]
[1773034989578,3.78275937,84.311,84.271,3.55586251]
[1773034989783,3.78275937,84.311,84.262,41.53711044]
[1773034989784,11.85972319,84.319,84.28,11.58501683]
[1773034989983,59.28415382,84.34,84.262,41.53711044]
[1773034989984,3.78275937,84.356,84.31,11.58501683]
[1773034990283,3.78275937,84.356,84.265,3.69383402]
[1773034990284,11.58501683,84.33,84.302,3.55586251]
[1773034990790,11.58501683,84.31,84.274,3.55586251]
[1773034990989,3.78275937,84.332,84.288,3.55586251]
[1773034991184,3.78275937,84.332,84.293,3.55586251]
[1773034991382,3.78275937,84.332,84.29,11.58501683]
[1773034991383,11.8546072,84.356,84.311,3.55586251]
[1773034991583,3.78275937,84.358,84.315,3.55586251]
[1773034991795,3.78275937,84.358,84.321,3.55586251]
[1773034992010,11.58501683,84.38,84.321,3.55586251]
[1773034992300,29.62304861,84.394,84.32,3.55586251]
[1773034992301,11.58501683,84.35,84.32,3.55586251]
[1773034992603,3.78275937,84.369,84.322,3.55586251]
[1773034993207,11.58501683,84.36,84.322,3.55586251]
[1773034993381,3.78275937,84.369,84.322,3.55586251]
[1773034993710,3.78275937,84.369,84.332,3.55586251]
[1773034993711,11.85283519,84.368,84.332,3.55586251]
[1773034994200,11.58501683,84.35,84.311,3.84018565]
[1773034994382,11.58501683,84.35,84.311,3.55586251]
[1773034994578,11.58501683,84.36,84.321,3.55586251]
[1773034994785,11.58501683,84.38,84.331,3.55586251]
[1773034994982,11.58501683,84.38,84.341,3.55586251]
[1773034995703,15.63404938,84.379,84.343,3.55586251]
[1773034995995,11.58501683,84.36,84.323,3.55586251]
[1773034996177,3.78275937,84.375,84.323,3.55586251]
[1773034996385,11.58501683,84.37,84.331,3.55586251]
[1773034996802,3.78275937,84.375,84.331,3.55586251]
[1773034997191,3.78275937,84.375,84.323,0.28432314]
[1773034997192,3.78275937,84.359,84.321,3.55586251]
[1773034997581,3.78275937,84.376,84.333,3.55586251]
[1773034997788,11.58501683,84.39,84.351,3.55586251]
[1773034998315,11.84890279,84.396,84.351,3.55586251]
[1773034998488,11.58501683,84.39,84.351,3.55586251]
[1773034998814,11.84890279,84.396,84.361,3.55586251]
[1773034999512,11.84819166,84.402,84.363,3.55586251]
[1773034999814,53.44,84.449,84.362,11.85367819]
[1773034999815,53.44,84.449,84.362,3.55586251]
[1773034999989,35.23527916,84.561,84.391,3.55586251]
[1773034999990,3.78275937,84.446,84.391,3.55586251]
[1773035000190,3.78275937,84.439,84.392,0.28432314]
[1773035000412,3.78275937,84.422,84.379,3.55586251]
[1773035000606,3.78275937,84.419,84.363,0.28432314]
[1773035000813,3.78275937,84.446,84.371,3.55586251]
[1773035001104,11.58501683,84.4,84.371,3.55586251]
[1773035001306,3.78275937,84.41,84.371,3.55586251]
[1773035001507,3.78275937,84.378,84.341,3.55586251]
[1773035001808,3.78275937,84.428,84.37,11.58501683]
[1773035002004,8.48361279,84.448,84.411,3.55586251]
[1773035002186,8.48361279,84.448,84.42,11.58501683]
[1773035002386,8.48361279,84.448,84.411,3.55586251]
[1773035002705,3.78275937,84.459,84.424,3.55586251]
[1773035003092,3.78275937,84.469,84.424,3.55586251]
[1773035003403,11.58501683,84.47,84.431,3.55586251]
[1773035003615,41.425511,84.489,84.431,3.55586251]
[1773035003616,3.78275937,84.474,84.432,3.55586251]
[1773035003804,11.58501683,84.47,84.432,3.55586251]
[1773035004004,11.58501683,84.47,84.365,1.18532566]
[1773035004005,3.78275937,84.459,84.391,3.55586251]
[1773035004205,41.43335739,84.473,84.421,3.55586251]
[1773035004206,3.78275937,84.472,84.421,3.55586251]
[1773035004409,11.58501683,84.47,84.431,3.84018565]
[1773035004715,3.78275937,84.469,84.43,11.58501683]
[1773035004894,11.58501683,84.47,84.431,3.69802408]
[1773035005095,3.78275937,84.459,84.42,15.14087934]
[1773035005291,3.78275937,84.459,84.422,3.55586251]
[1773035005504,3.78275937,84.471,84.431,3.69802408]
[1773035005797,3.78275937,84.471,84.399,29.62096778]
[1773035005798,3.78275937,84.488,84.451,3.55586251]
[1773035006009,11.58501683,84.47,84.438,3.55586251]
[1773035006214,11.58501683,84.46,84.428,3.55586251]
[1773035006419,11.58501683,84.46,84.428,15.4001849]
[1773035006618,3.78275937,84.488,84.431,3.55586251]
[1773035006796,11.83586028,84.489,84.431,3.55586251]
[1773035006797,11.58501683,84.47,84.431,3.55586251]
[1773035006996,3.78275937,84.469,84.431,3.55586251]
[1773035007495,11.58501683,84.46,84.431,3.55586251]
[1773035007694,11.84020459,84.458,84.423,3.55586251]
[1773035007895,11.58501683,84.46,84.423,3.55586251]
[1773035008133,11.58501683,84.48,84.441,3.55586251]
[1773035008696,11.83670951,84.483,84.441,3.55586251]
[1773035008892,11.58501683,84.48,84.441,3.55586251]
[1773035009119,11.58501683,84.47,84.441,3.55586251]
[1773035009719,15.3677762,84.47,84.441,3.55586251]
[1773035009907,11.58501683,84.46,84.431,15.39985346]
[1773035010107,11.58501683,84.46,84.431,11.84399095]
[1773035010305,11.58501683,84.46,84.432,3.55586251]
[1773035010616,3.78275937,84.439,84.399,3.55586251]
[1773035010912,3.78275937,84.449,84.411,3.55586251]
[1773035011493,11.58501683,84.45,84.411,3.55586251]
[1773035011701,3.78275937,84.469,84.431,3.55586251]
[1773035012000,11.83635458,84.486,84.412,0.14216157]
[1773035012001,3.78275937,84.459,84.422,11.84521498]
[1773035012204,11.58501683,84.45,84.421,3.55586251]
[1773035012502,3.78275937,84.449,84.411,12.13112035]
[1773035012696,3.78275937,84.449,84.41,11.58501683]
[1773035012697,3.78275937,84.439,84.405,11.84753128]
[1773035012897,3.71545014,84.429,84.385,29.6258614]
[1773035013210,3.71545014,84.429,84.256,29.62183199]
[1773035013211,3.71545014,84.399,84.348,3.77208158]
[1773035013411,11.58501683,84.38,84.348,3.77208158]
[1773035013718,11.58501683,84.38,84.34,11.58501683]
[1773035013719,11.58501683,84.38,84.351,3.77208158]
[1773035013904,11.58501683,84.38,84.352,15.62716503]
[1773035014220,11.58501683,84.39,84.353,3.77208158]
[1773035014424,11.58501683,84.39,84.283,47.45866615]
[1773035014425,3.71545014,84.379,84.342,3.77208158]
[1773035015129,3.71545014,84.379,84.341,11.85662963]
[1773035015130,3.71545014,84.398,84.341,41.49820371]
[1773035015304,3.71545014,84.349,84.308,3.77208158]
[1773035015501,11.58501683,84.34,84.305,3.77208158]
[1773035016022,29.62050212,84.401,84.286,3.77208158]
[1773035016023,3.71545014,84.329,84.286,3.77208158]
[1773035016318,11.58501683,84.32,84.286,3.77208158]
[1773035016504,11.58501683,84.32,84.288,3.77208158]
[1773035016711,11.58501683,84.33,84.301,3.77208158]
[1773035016898,29.63734741,84.354,84.287,11.86422579]
[1773035016899,11.58501683,84.32,84.287,11.86422579]
[1773035017104,29.63734741,84.354,84.291,3.77208158]
[1773035017105,11.8569108,84.339,84.291,3.77208158]
[1773035017301,3.71545014,84.331,84.291,3.77208158]
[1773035017508,11.58501683,84.33,84.301,3.77208158]
[1773035017733,11.58501683,84.32,84.291,3.77208158]
[1773035018028,11.58501683,84.32,84.281,3.77208158]
[1773035018210,11.58501683,84.32,84.277,11.86552665]
[1773035018211,3.71545014,84.327,84.291,3.77208158]
[1773035018408,3.71545014,84.327,84.262,3.69383402]
[1773035018409,3.71545014,84.299,84.241,3.77208158]
[1773035018602,11.58501683,84.27,84.241,3.77208158]
[1773035018922,41.50460107,84.328,84.18,11.58501683]
[1773035018923,3.71545014,84.298,84.243,3.77208158]
[1773035019128,3.69383402,84.325,84.212,3.69383402]
[1773035019129,3.71545014,84.299,84.231,3.77208158]
[1773035019440,11.58501683,84.27,84.231,3.77208158]
[1773035019930,11.58501683,84.29,84.241,3.77208158]
[1773035020238,11.58501683,84.28,84.251,3.77208158]
[1773035020721,3.71545014,84.289,84.251,3.77208158]
[1773035020924,71.15158845,84.327,84.232,41.69406582]
[1773035020925,11.58501683,84.32,84.281,3.77208158]
[1773035021113,11.58501683,84.33,84.291,3.77208158]
[1773035021420,11.58501683,84.33,84.3,11.58501683]
[1773035021620,11.58501683,84.33,84.291,3.77208158]
[1773035021815,3.71545014,84.328,84.291,3.77208158]
[1773035022528,11.58501683,84.33,84.301,3.77208158]
[1773035022933,11.85738829,84.336,84.301,3.77208158]
[1773035023526,11.58501683,84.33,84.292,11.86352204]
[1773035023906,3.71545014,84.329,84.29,15.35709841]
[1773035024223,3.71545014,84.329,84.291,11.86366278]
[1773035024725,3.71545014,84.319,84.29,11.58501683]
[1773035024926,3.71545014,84.309,84.271,11.86642432]
[1773035025316,3.71545014,84.309,84.28,11.58501683]
[1773035025921,3.71545014,84.299,84.26,3.77208158]
[1773035026127,3.71545014,84.299,84.261,11.86788668]
[1773035026325,11.86127057,84.308,84.27,15.35709841]
[1773035026521,3.71545014,84.299,84.261,41.53760339]
[1773035026728,3.71545014,84.299,84.261,11.86788668]
[1773035027216,11.85972319,84.319,84.262,3.77208158]
[1773035027418,11.58501683,84.31,84.281,11.86507041]
[1773035027616,29.64919329,84.32,84.281,11.86507041]
[1773035027617,3.71545014,84.319,84.282,3.77208158]
[1773035027826,3.71545014,84.319,84.259,3.77208158]
[1773035028058,11.58501683,84.31,84.27,15.35709841]
[1773035028218,3.71545014,84.309,84.27,15.35709841]
[1773035028409,3.71545014,84.321,84.28,11.58501683]
[1773035028615,3.71545014,84.374,84.311,3.77208158]
[1773035028926,3.71545014,84.369,84.33,11.58501683]
[1773035029129,3.71545014,84.359,84.311,3.77208158]
[1773035029327,3.71545014,84.359,84.32,11.58501683]
[1773035029528,3.71545014,84.349,84.32,11.58501683]
[1773035029924,15.57100409,84.349,84.32,11.58501683]
[1773035030125,3.71545014,84.349,84.32,11.58501683]
[1773035030337,11.85564565,84.348,84.32,11.58501683]
[1773035031023,11.85564565,84.348,84.313,3.77208158]
[1773035031338,3.71545014,84.347,84.313,3.77208158]
[1773035032129,3.71545014,84.345,84.314,11.8604265]
[1773035032335,11.85592677,84.346,84.29,15.35709841]
[1773035032336,3.71545014,84.329,84.29,15.35709841]
[1773035032825,3.71545014,84.329,84.291,3.77208158]
[1773035033016,3.71545014,84.319,84.29,11.58501683]
[1773035033640,3.71545014,84.319,84.281,3.77208158]
[1773035034018,3.71545014,84.319,84.29,11.58501683]
[1773035034218,15.57517487,84.319,84.291,11.86366278]
[1773035035627,3.71545014,84.319,84.291,11.86366278]
[1773035036536,11.85986384,84.318,84.29,11.58501683]
[1773035036734,3.71545014,84.319,84.29,11.58501683]
[1773035036938,3.71545014,84.319,84.283,3.77208158]
[1773035037251,11.85951577,84.437,84.26,11.58501683]
[1773035037252,3.71545014,84.299,84.26,11.58501683]
[1773035037541,3.71545014,84.299,84.261,3.77208158]
[1773035037734,11.58501683,84.31,84.271,3.77208158]
[1773035038046,3.71545014,84.309,84.271,3.77208158]
[1773035038244,3.71545014,84.299,84.26,11.58501683]
[1773035038430,3.71545014,84.287,84.254,11.86884298]
[1773035038921,3.71545014,84.279,84.24,11.58501683]
[1773035039623,11.58501683,84.29,84.251,3.77208158]
[1773035039825,11.58501683,84.29,84.26,11.58501683]
[1773035040231,3.71545014,84.289,84.251,3.77208158]
[1773035040534,11.58501683,84.28,84.251,3.77208158]
[1773035040734,11.58501683,84.28,84.25,23.45438967]
[1773035040735,3.71545014,84.279,84.25,11.58501683]
[1773035041120,3.71545014,84.279,84.245,11.87011754]
[1773035041817,3.71545014,84.279,84.251,11.86929531]
[1773035042014,3.71545014,84.289,84.252,3.77208158]
[1773035042234,15.57939442,84.289,84.252,3.77208158]
[1773035042836,3.71545014,84.288,84.252,3.77208158]
[1773035043037,3.73528675,84.279,84.25,11.58501683]
[1773035043232,3.73528675,84.269,84.238,11.87110971]
[1773035043545,41.52380499,84.289,84.211,3.56757466]
[1773035043546,3.73528675,84.249,84.211,3.56757466]
[1773035043834,11.58501683,84.24,84.21,11.58501683]
[1773035044044,3.73528675,84.229,84.19,11.58501683]
[1773035044223,3.73528675,84.229,84.191,3.56757466]
[1773035044619,11.58501683,84.22,84.191,3.56757466]
[1773035044921,11.58501683,84.21,84.181,11.87916513]
[1773035045333,3.73528675,84.209,84.171,11.88057644]
[1773035045941,3.73528675,84.199,84.171,11.88057644]
[1773035046436,11.87535626,84.208,84.172,3.56757466]
[1773035046638,15.61064301,84.208,84.172,3.33023466]
[1773035046838,3.73528675,84.207,84.172,3.33023466]
[1773035047234,3.73528675,84.219,84.171,41.58201755]
[1773035047428,3.73528675,84.209,84.18,11.61260488]
[1773035047735,3.73528675,84.209,84.171,11.88057644]
[1773035047923,3.73528675,84.199,84.171,11.88057644]
[1773035048122,11.87535626,84.208,84.171,11.88057644]
[1773035048330,3.73528675,84.207,84.171,11.88057644]
[1773035048537,3.73528675,84.199,84.17,0.2]
[1773035048737,3.73528675,84.199,84.171,11.88057644]
[1773035048924,3.73528675,84.199,84.17,0.2]
[1773035049324,11.61260488,84.19,84.17,0.2]
[1773035049522,11.87467182,84.213,84.171,3.84111533]
[1773035049721,3.93193706,84.209,84.171,15.72169177]
[1773035049943,3.93193706,84.199,84.171,11.88057644]
[1773035050134,11.61260488,84.2,84.171,11.88057644]
[1773035050135,11.61260488,84.2,84.171,3.84111533]
[1773035050337,314.6,84.311,84.191,3.84111533]
[1773035050338,11.61260488,84.23,84.191,3.84111533]
[1773035050536,11.86380353,84.29,84.22,11.61260488]
[1773035050537,3.93193706,84.249,84.22,11.61260488]
[1773035050738,11.61260488,84.25,84.211,3.84111533]
[1773035050935,3.93193706,84.249,84.211,3.84111533]
[1773035051340,3.93193706,84.249,84.22,11.61260488]
[1773035051922,3.93193706,84.249,84.193,0.28432314]
[1773035051923,3.93193706,84.249,84.213,3.84111533]
[1773035052228,3.93193706,84.269,84.23,11.61260488]
[1773035052433,3.93193706,84.269,84.24,11.61260488]
[1773035052628,3.93193706,84.269,84.233,3.84111533]
[1773035052830,3.93193706,84.269,84.24,11.61260488]
[1773035053035,3.93193706,84.269,84.233,3.84111533]
[1773035053544,46.45041952,84.36,84.213,0.28432314]
[1773035053545,3.93193706,84.289,84.241,3.84111533]
[1773035053738,3.93193706,84.279,84.241,3.84111533]
[1773035054134,3.93193706,84.279,84.25,11.61260488]
[1773035054623,3.93193706,84.279,84.242,41.54697181]
[1773035054830,3.93193706,84.298,84.26,15.45372021]
[1773035055024,43.28385864,84.298,84.261,3.84111533]
[1773035055224,43.28385864,84.298,84.27,11.61260488]
[1773035055630,3.69383402,84.353,84.272,3.84111533]
[1773035055631,3.93193706,84.327,84.272,3.84111533]
[1773035055833,9.64802061,84.43,84.242,41.54697181]
[1773035055834,0.59291331,84.352,84.321,3.84111533]
[1773035056149,11.85129001,84.379,84.333,3.84111533]
[1773035056448,11.61260488,84.37,84.333,3.84111533]
[1773035056747,7.34425413,84.395,84.361,3.84111533]
[1773035056939,19.19330534,84.395,84.341,3.84111533]
[1773035057249,11.61260488,84.38,84.35,15.45372021]
[1773035057450,11.61260488,84.39,84.35,15.45372021]
[1773035057639,11.61260488,84.39,84.36,11.61260488]
[1773035058149,15.29491952,84.392,84.36,11.61260488]
[1773035058343,11.61260488,84.39,84.356,11.8544788]
[1773035059540,11.61260488,84.38,84.351,3.84111533]
[1773035060331,11.61260488,84.38,84.343,11.85629647]
[1773035060649,11.85129001,84.379,84.343,11.85629647]
[1773035061047,11.61260488,84.37,84.337,11.85709357]
[1773035061239,11.85129001,84.379,84.341,3.84111533]
[1773035061440,23.46379021,84.38,84.341,3.84111533]
[1773035061954,11.61260488,84.37,84.331,3.84111533]
[1773035062335,11.85269471,84.369,84.332,11.85789498]
[1773035062542,11.85269471,84.369,84.34,11.61260488]
[1773035062749,11.85269471,84.369,84.333,3.84111533]
[1773035063950,11.85269471,84.369,84.332,11.85789498]
[1773035063951,11.61260488,84.41,84.361,3.84111533]
[1773035064156,41.45053174,84.438,84.381,3.84111533]
[1773035064157,3.45215174,84.437,84.381,3.84111533]
[1773035064452,11.8444118,84.428,84.39,11.61260488]
[1773035064636,15.29656354,84.428,84.39,11.61260488]
[1773035065142,15.29656354,84.428,84.391,11.84960481]
[1773035065343,15.29656354,84.428,84.39,11.61260488]
[1773035065741,11.61260488,84.41,84.37,15.45372021]
[1773035065955,41.45544131,84.428,84.36,27.30767943]
[1773035065956,11.61260488,84.4,84.36,27.30767943]
[1773035066259,3.4539939,84.389,84.353,11.85486997]
[1773035066557,11.85002607,84.388,84.353,11.85486997]
[1773035066755,3.4539939,84.389,84.353,15.6959853]
[1773035066955,11.84987791,84.39,84.354,3.84111533]
[1773035067154,11.84834123,84.4,84.354,3.84111533]
[1773035067462,11.61260488,84.39,84.354,3.84111533]
[1773035067955,41.46919431,84.4,84.361,3.84111533]
[1773035067956,23.46094611,84.4,84.361,3.84111533]
[1773035068344,11.84834123,84.4,84.361,3.84111533]
[1773035068548,23.46094611,84.4,84.363,3.84111533]
[1773035069345,3.45579398,84.412,84.371,3.84111533]
[1773035069346,11.61260488,84.41,84.371,3.84111533]
[1773035070442,11.61260488,84.38,84.341,3.84111533]
[1773035070642,3.45755295,84.387,84.343,3.84111533]
[1773035071551,11.61260488,84.38,84.343,3.84111533]
[1773035073164,3.46095128,84.415,84.351,3.93452668]
[1773035073344,11.61260488,84.4,84.361,3.93452668]
[1773035073961,11.61260488,84.41,84.371,3.93452668]
[1773035074862,11.61260488,84.4,84.371,3.93452668]
[1773035075039,11.61260488,84.4,84.361,3.93452668]
[1773035075243,11.61260488,84.4,84.363,3.93452668]
[1773035075859,23.45816686,84.42,84.381,3.93452668]
[1773035076061,11.61260488,84.41,84.381,3.93452668]
[1773035076645,3.46339894,84.419,84.381,3.93452668]
[1773035076957,23.45816686,84.42,84.381,3.93452668]
[1773035077266,11.61260488,84.4,84.363,3.93452668]
[1773035077753,11.61260488,84.4,84.344,41.49672768]
[1773035077754,11.61260488,84.39,84.35,11.61260488]
[1773035077959,11.61260488,84.4,84.361,3.93452668]
[1773035078160,41.4647727,84.409,84.344,41.49672768]
[1773035078161,11.61260488,84.38,84.349,3.93452668]
[1773035078572,11.61260488,84.37,84.338,3.93452668]
[1773035079478,11.61260488,84.36,84.309,3.93452668]
[1773035079760,11.61260488,84.34,84.301,3.93452668]
[1773035079954,11.61260488,84.33,84.301,3.93452668]
[1773035080160,11.61260488,84.32,84.288,3.93452668]
[1773035080359,11.61260488,84.31,84.288,3.93452668]
[1773035080561,11.61260488,84.32,84.288,3.93452668]
[1773035081551,11.61260488,84.32,84.29,3.93452668]
[1773035081750,11.61260488,84.31,84.29,3.93452668]
[1773035081943,11.85972319,84.319,84.281,3.93452668]
[1773035082149,11.61260488,84.31,84.281,3.93452668]
[1773035083050,11.61260488,84.31,84.27,11.81260488]
[1773035083051,11.61260488,84.29,84.203,29.69009108]
[1773035083364,11.61260488,84.29,84.142,47.538125]
[1773035083365,11.61260488,84.3,84.221,3.93452668]
[1773035083366,3.90551183,84.276,84.221,3.93452668]
[1773035083548,11.86572283,84.277,84.231,3.93452668]
[1773035083876,11.86572283,84.277,84.25,3.93452668]
[1773035084061,11.61260488,84.27,84.237,3.93452668]
[1773035084266,11.61260488,84.26,84.237,3.93452668]
[1773035084591,11.61260488,84.25,84.211,3.93452668]
[1773035084771,11.61260488,84.24,84.211,3.93452668]
[1773035084983,11.61260488,84.24,84.2,11.61260488]
[1773035085154,11.61260488,84.25,84.201,3.93452668]
[1773035085349,0.28432314,84.286,84.201,3.93452668]
[1773035085350,45.41995884,84.308,84.241,3.93452668]
[1773035085548,3.90551183,84.32,84.272,3.93452668]
[1773035085750,11.61260488,84.31,84.272,3.93452668]
[1773035085948,3.90551183,84.319,84.273,3.93452668]
[1773035086381,3.90551183,84.355,84.301,3.93452668]
[1773035086669,11.61260488,84.35,84.301,3.93452668]
[1773035086869,11.61260488,84.34,84.301,3.93452668]
[1773035087244,11.61260488,84.33,84.301,3.93452668]
[1773035087445,11.8569108,84.339,84.3,11.61260488]
[1773035087661,11.8569108,84.339,84.299,3.93452668]
[1773035087863,11.61260488,84.35,84.311,3.93452668]
[1773035089270,11.85480238,84.354,84.311,3.93452668]
[1773035089448,11.61260488,84.35,84.311,3.93452668]
[1773035089648,11.8555051,84.349,84.311,3.93452668]
[1773035089845,11.61260488,84.34,84.311,3.93452668]
[1773035090778,15.76101693,84.349,84.19,11.61260488]
[1773035090779,3.69383402,84.317,84.19,11.61260488]
[1773035090980,1.80615007,84.243,84.188,3.93452668]
[1773035091281,1.80615007,84.243,84.15,0.2]
[1773035091282,1.81047565,84.259,84.191,3.93452668]
[1773035091446,11.61260488,84.24,84.201,3.93452668]
[1773035091646,11.86993635,84.247,84.211,3.93452668]
[1773035092869,59.32256532,84.285,84.211,3.93452668]
[1773035093074,29.66408097,84.278,84.231,3.93452668]
[1773035093372,29.66408097,84.278,84.181,41.57707796]
[1773035093373,29.66408097,84.278,84.251,3.93452668]
[1773035093569,11.86464809,84.284,84.251,3.93452668]
[1773035094654,1.18661967,84.283,84.251,3.93452668]
[1773035094857,11.86394428,84.289,84.253,3.93452668]
[1773035095066,29.65742358,84.296,84.261,3.93452668]
[1773035095067,11.86301539,84.296,84.261,3.93452668]
[1773035095771,1.18661967,84.295,84.261,3.93452668]
[1773035096153,11.86301539,84.296,84.261,3.93452668]
[1773035096662,13.04963506,84.296,84.261,3.93452668]
[1773035096970,11.86301539,84.296,84.261,3.93452668]
[1773035098080,11.86301539,84.296,84.262,3.93452668]
[1773035099072,11.86056717,84.313,84.281,3.93452668]
[1773035099252,1.18661967,84.312,84.271,3.93452668]
[1773035099458,11.61260488,84.31,84.271,3.93452668]
[1773035099963,11.86112989,84.309,84.271,3.93452668]
[1773035100266,3.90551183,84.358,84.3,15.54713156]
[1773035100474,3.90551183,84.358,84.301,3.93452668]
[1773035100475,11.61260488,84.35,84.301,3.93452668]
[1773035100665,11.61260488,84.35,84.311,3.93452668]
[1773035100868,11.61260488,84.33,84.293,3.93452668]
[1773035101272,11.61260488,84.33,84.29,11.61260488]
[1773035101273,11.61260488,84.32,84.28,15.54713156]
[1773035101568,11.61260488,84.32,84.223,4.82477569]
[1773035101569,11.61260488,84.29,84.234,3.93452668]
[1773035101776,3.90551183,84.353,84.251,3.93452668]
[1773035101963,11.86253692,84.299,84.261,3.93452668]
[1773035103072,11.86253692,84.299,84.262,11.86774584]
[1773035103275,59.29382523,84.326,84.262,11.86774584]
[1773035103276,3.62344149,84.352,84.291,3.83645139]
[1773035103456,11.61260488,84.34,84.291,3.83645139]
[1773035103779,3.62344149,84.339,84.291,3.83645139]
[1773035103984,11.61260488,84.33,84.291,3.83645139]
[1773035104278,11.61260488,84.33,84.292,11.86352204]
[1773035104279,11.85831683,84.329,84.292,11.86352204]
[1773035104872,11.85831683,84.329,84.293,3.83645139]
[1773035105081,11.85831683,84.329,84.3,11.61260488]
[1773035105274,11.85831683,84.329,84.293,3.83645139]
[1773035105476,11.85831683,84.329,84.133,19.14791404]
[1773035105477,11.61260488,84.31,84.272,11.86625456]
[1773035105680,11.58390212,84.31,84.272,11.86625456]
[1773035105979,3.62344149,84.319,84.272,15.70270595]
[1773035106567,11.85986384,84.318,84.281,3.83645139]
[1773035106762,11.85986384,84.318,84.24,11.58390212]
[1773035106763,3.62344149,84.299,84.252,3.83645139]
[1773035106986,41.50952346,84.318,84.252,3.83645139]
[1773035106987,11.58390212,84.3,84.252,3.83645139]
[1773035107278,11.58390212,84.31,84.271,3.83645139]
[1773035107573,7.32151733,84.359,84.271,3.83645139]
[1773035107574,41.22594351,84.34,84.3,11.58390212]
[1773035107779,11.58390212,84.32,84.28,11.58390212]
[1773035108078,11.58390212,84.33,84.291,3.83645139]
[1773035108382,11.58390212,84.32,84.28,11.58390212]
[1773035108683,11.85972319,84.319,84.281,11.86507041]
[1773035108889,11.85452131,84.356,84.31,11.58390212]
[1773035109062,3.93282306,84.349,84.31,11.58390212]
[1773035109262,11.58390212,84.33,84.301,3.7568794]
[1773035109464,11.58390212,84.33,84.29,11.58390212]
[1773035109685,11.58390212,84.33,84.291,3.7568794]
[1773035109980,3.93282306,84.338,84.3,11.58390212]
[1773035110275,11.58390212,84.34,84.301,3.7568794]
[1773035110981,11.8569108,84.339,84.302,11.86211477]
[1773035111366,11.8569108,84.339,84.303,3.7568794]
[1773035111561,11.85579765,84.347,84.303,3.7568794]
[1773035111766,11.58390212,84.34,84.303,3.7568794]
[1773035112581,11.85579765,84.347,84.303,3.7568794]
[1773035112785,11.85579765,84.347,84.311,3.7568794]
[1773035113085,11.85579765,84.347,84.312,11.86070784]
[1773035113479,11.85579765,84.347,84.311,3.7568794]
[1773035113867,11.85579765,84.347,84.311,15.61766374]
[1773035114074,11.58390212,84.34,84.299,3.7568794]
[1773035114378,11.58390212,84.34,84.3,23.44629832]
[1773035114574,11.58390212,84.34,84.301,3.7568794]
[1773035114981,59.27242589,84.357,84.288,3.7568794]
[1773035114982,11.58390212,84.33,84.288,3.7568794]
[1773035115186,3.93282306,84.329,84.288,3.7568794]
[1773035115682,11.8569108,84.339,84.301,3.7568794]
[1773035115981,11.58390212,84.33,84.301,3.7568794]
[1773035116178,11.58390212,84.33,84.291,11.86365285]
[1773035116373,11.58390212,84.33,84.292,3.7568794]
[1773035116976,59.27242589,84.357,84.281,3.7568794]
[1773035116977,11.58390212,84.32,84.281,3.7568794]